bitfinex-derivatives/quotes_ETHF0:USTF0_20250123
["timestamp","ask_amount","ask_price","bid_price","bid_amount"]
[1737643488380,0.00458449,3270.9,3270.2,0.00458449]
[1737643488579,0.00458449,3270.9,3270.4,0.61167]
[1737643488580,3.21238449,3270.9,3270.4,0.61167]
[1737643488887,3.93713015,3270.8,3270.3,0.61171]
[1737643489181,3.93713015,3270.8,3270.2,0.00458449]
[1737643489377,3.93713015,3270.8,3270.5,3.2078]
[1737643489576,0.00458449,3270.9,3270.5,3.2078]
[1737643489780,0.00458449,3270.9,3270.8,0.61161]
[1737643490285,0.00458449,3270.9,3270.5,3.2078]
[1737643490584,0.00458449,3270.9,3270.3,1.5082]
[1737643490779,0.00458449,3270.9,3270.8,0.61161]
[1737643492781,0.00458449,3270.9,3270.5,3.2078]
[1737643492988,0.00458449,3270.9,3270.6,0.61165]
[1737643493389,3.97751185,3270.8,3270.5,0.61167]
[1737643493585,0.61166,3270.6,3270.2,0.61631449]
[1737643493784,3.97751185,3270.8,3270.2,0.00458449]
[1737643493975,0.61171,3270.3,3270.2,0.00458449]
[1737643494379,5.48507547,3270.3,3270.2,0.61631449]
[1737643494575,4.7444,3270.8,3270.2,0.00458449]
[1737643494787,4.7444,3270.8,3270.3,0.61169]
[1737643494986,4.02897547,3270.6,3270.5,0.61167]
[1737643495179,3.2078,3270.8,3270.6,0.61165]
[1737643495379,3.2078,3270.8,3270.2,0.00458449]
[1737643495689,0.00458449,3270.9,3270.4,3.2078]
[1737643495879,0.00458449,3270.9,3270.8,0.61161]
[1737643496290,0.00458449,3270.9,3270.8,3.81941]
[1737643496588,1.5128,3272.4,3271.0,1.52895]
[1737643496885,1.5128,3272.4,3271.9,3.2078]
[1737643497087,3.97577939,3272.3,3271.9,3.2078]
[1737643497288,3.2078,3272.6,3271.9,3.2078]
[1737643497483,1.4957,3273.4,3273.1,0.61118]
[1737643497484,3.2078,3273.2,3273.1,0.61118]
[1737643497685,0.00458449,3272.6,3272.4,3.2078]
[1737643498391,3.92206382,3272.5,3272.4,3.2078]
[1737643498787,4.53336382,3272.5,3272.4,3.2078]
[1737643498981,0.61132,3272.4,3272.2,0.00458449]
[1737643499285,0.00458449,3272.6,3272.2,0.00458449]
[1737643499485,3.93951463,3272.3,3272.2,0.00458449]
[1737643499787,7.14731463,3272.4,3272.2,0.00458449]
[1737643499998,3.2078,3272.4,3272.2,0.00458449]
[1737643500293,8.2078,3272.4,3271.0,3.2078]
[1737643500585,5.41074414,3272.3,3271.0,3.2078]
[1737643500791,3.96604414,3272.3,3272.2,0.61135]
[1737643500991,0.00458449,3272.6,3272.2,0.61135]
[1737643501193,0.00458449,3272.6,3271.9,0.61139]
[1737643501499,3.96604414,3272.5,3272.1,0.00458449]
[1737643501684,0.00458449,3272.6,3272.5,0.6113]
[1737643501987,0.00458449,3272.6,3272.5,3.8191]
[1737643502785,4.49e-06,3272.6,3272.5,3.8191]
[1737643502987,4.49e-06,3272.6,3272.5,8.8191]
[1737643503188,4.49e-06,3272.6,3272.5,3.8191]
[1737643503583,4.49e-06,3272.6,3272.5,8.8191]
[1737643504183,1.5476,3274.1,3272.5,11.8591955]
[1737643504390,1.5476,3274.9,3274.0,3.2078]
[1737643504587,1.5476,3274.9,3274.1,0.611]
[1737643504782,1.5476,3274.9,3274.0,3.2078]
[1737643505095,3.90467971,3274.8,3274.2,0.61097]
[1737643505400,4.5201342,3274.8,3274.2,0.00458449]
[1737643505591,3.9092642,3274.8,3274.2,0.00458449]
[1737643505792,3.2078,3274.6,3274.2,0.00458449]
[1737643506292,4.01462455,3274.5,3274.4,0.61094]
[1737643506493,0.00458449,3274.8,3274.3,0.61096]
[1737643506692,0.00458449,3274.8,3274.2,40.80458449]
[1737643506887,3.2078,3274.6,3274.2,0.00458449]
[1737643507287,7.15284452,3274.5,3274.2,0.00458449]
[1737643507485,3.2078,3274.3,3274.2,0.00458449]
[1737643507685,3.9839569,3274.6,3274.2,0.00458449]
[1737643507882,0.00458449,3274.8,3274.3,3.2078]
[1737643508093,0.00458449,3274.8,3274.2,0.00458449]
[1737643508294,7.6353524,3274.7,3274.2,0.00458449]
[1737643508495,3.2078,3274.6,3274.2,0.00458449]
[1737643508797,3.88710836,3274.5,3274.2,0.00458449]
[1737643508993,3.88710836,3274.5,3274.2,0.61555449]
[1737643509296,4.49804836,3274.5,3274.2,0.00458449]
[1737643509496,4.49804836,3274.5,3273.1,3.6513955]
[1737643509497,3.88710836,3274.5,3273.5,3.2078]
[1737643509687,3.2078,3273.7,3272.9,3.2078]
[1737643510097,3.9292137,3273.6,3273.4,0.61113]
[1737643510285,3.9292137,3273.6,3272.9,3.2078]
[1737643510286,3.2078,3273.7,3272.9,3.2078]
[1737643510486,3.97407167,3273.5,3272.9,3.2078]
[1737643510691,3.97407167,3273.5,3273.0,0.00458449]
[1737643510897,1.4874,3273.6,3273.0,0.00458449]
[1737643511094,3.81898,3273.1,3273.0,0.00458449]
[1737643511485,3.92721358,3273.1,3273.0,0.61578449]
[1737643511690,3.2078,3274.0,3273.0,0.00458449]
[1737643511892,3.2078,3274.0,3273.3,3.2078]
[1737643512195,3.92721358,3274.0,3273.9,0.61103]
[1737643512394,3.6513955,3275.3,3273.9,5.0]
[1737643512586,3.2078,3275.4,3274.7,0.61089]
[1737643513890,3.2078,3276.0,3274.7,3.81869]
[1737643514100,3.2078,3275.6,3274.7,3.81869]
[1737643514300,3.6513955,3275.8,3274.7,3.81869]
[1737643514600,3.2078,3275.5,3274.1,3.2078]
[1737643514795,3.2078,3275.5,3274.7,0.61089]
[1737643514993,0.61076,3275.4,3274.7,0.61089]
[1737643515194,0.61076,3275.4,3274.1,3.2078]
[1737643515195,0.61084,3275.0,3274.1,3.2078]
[1737643515493,3.2078,3274.7,3274.1,3.2078]
[1737643515693,7.84760748,3274.7,3274.1,3.2078]
[1737643515903,7.23671748,3274.7,3273.6,3.2078]
[1737643516202,3.2078,3274.2,3273.6,3.2078]
[1737643516701,3.93040475,3274.1,3274.0,0.61102]
[1737643516897,1.4946,3274.6,3274.5,0.61093]
[1737643517196,3.65597999,3274.8,3274.4,3.2078]
[1737643517197,0.00458449,3274.8,3274.4,3.2078]
[1737643517588,0.00458449,3274.8,3274.7,0.61089]
[1737643517994,6.8591955,3275.8,3274.4,3.2078]
[1737643518190,6.8591955,3275.8,3275.0,3.2078]
[1737643518496,3.89426347,3275.7,3275.6,0.61072]
[1737643518691,6.8591955,3277.3,3276.3,0.61059]
[1737643518893,1.15e-06,3276.4,3276.3,8.81839]
[1737643519099,3.2078,3277.7,3277.1,0.61044]
[1737643519299,3.2078,3277.7,3276.9,3.2078]
[1737643519501,0.61036,3277.6,3277.1,0.61044]
[1737643519703,0.61494715,3277.5,3277.0,0.61046]
[1737643519896,0.61039,3277.4,3276.9,3.2078]
[1737643520203,3.89217418,3277.1,3276.9,3.2078]
[1737643520407,4.50262418,3277.1,3276.4,0.61057]
[1737643520704,3.89217418,3277.1,3276.3,3.2078]
[1737643521094,3.2078,3276.6,3276.1,40.8]
[1737643521394,4.03083961,3276.5,3276.2,0.61059]
[1737643521599,7.23863961,3276.5,3276.0,0.00458449]
[1737643521890,3.81843,3276.1,3276.0,0.00458449]
[1737643522094,0.61078,3275.3,3274.4,3.2078]
[1737643522395,7.20947093,3275.2,3274.6,0.61089]
[1737643522595,7.20947093,3275.2,3274.7,0.61088]
[1737643522792,7.20947093,3275.2,3274.2,3.2078]
[1737643523194,0.00457715,3275.0,3274.4,0.00457715]
[1737643523396,3.2078,3274.8,3274.4,0.00457715]
[1737643523603,3.81867,3274.8,3274.4,0.00457715]
[1737643523796,3.6513955,3274.5,3274.4,0.00457715]
[1737643524201,4.04946917,3274.5,3274.4,0.61551715]
[1737643524403,0.00457715,3275.0,3274.4,0.00457715]
[1737643524799,0.00457715,3275.0,3274.9,0.61085]
[1737643525697,0.00457715,3275.0,3274.4,40.80457715]
[1737643526000,4.0316286,3275.0,3274.4,0.61551715]
[1737643526209,4.0316286,3275.0,3274.4,0.00457715]
[1737643526402,4.0316286,3275.0,3274.8,0.61085]
[1737643526601,4.0316286,3275.0,3274.4,0.00457715]
[1737643526799,4.0316286,3275.0,3274.6,0.6109]
[1737643527105,4.0316286,3275.0,3274.4,0.00457715]
[1737643527305,0.00457715,3275.0,3274.9,0.61085]
[1737643528604,6.8591955,3276.5,3275.0,1.52709]
[1737643528794,0.61059,3276.3,3275.8,0.61067]
[1737643528999,4.01478168,3275.9,3275.3,40.8]
[1737643529205,3.2078,3276.1,3275.3,40.8]
[1737643529506,3.95735646,3275.8,3275.2,3.2078]
[1737643529705,3.2078,3275.7,3275.2,3.2078]
[1737643529901,7.16515646,3275.7,3274.8,3.2078]
[1737643530099,3.2078,3275.3,3274.9,0.61084]
[1737643530304,3.2078,3275.3,3274.4,0.00457715]
[1737643530504,3.2078,3275.3,3274.5,40.8]
[1737643530699,3.2078,3275.3,3274.6,0.61091]
[1737643530899,3.2078,3275.3,3275.2,0.61079]
[1737643531098,3.6513955,3275.5,3275.4,0.61076]
[1737643531298,3.089,3275.6,3274.6,3.2078]
[1737643531498,3.2078,3274.7,3274.4,0.00457715]
[1737643531904,3.94936055,3274.6,3274.4,0.00457715]
[1737643532108,3.94936055,3274.6,3274.5,0.61093]
[1737643532606,3.2078,3275.5,3274.4,0.00457715]
[1737643532814,3.089,3275.6,3274.6,0.61089]
[1737643532815,0.61081,3275.1,3274.6,0.61089]
[1737643533002,3.2078,3274.8,3274.6,0.61089]
[1737643533201,3.2078,3274.8,3274.4,0.00457715]
[1737643533202,3.2078,3274.7,3274.4,0.61551715]
[1737643533403,7.15207205,3274.7,3274.4,0.00457715]
[1737643533704,3.2078,3274.7,3274.4,0.00457715]
[1737643533909,3.2078,3274.7,3274.5,0.61091]
[1737643534104,3.81859,3275.3,3274.8,0.61086]
[1737643534413,3.88986932,3275.3,3275.0,0.61082]
[1737643534608,3.2078,3275.2,3274.5,0.61093]
[1737643534908,3.97969362,3275.4,3274.6,3.2078]
[1737643535209,7.18749362,3275.2,3274.4,0.00457715]
[1737643535400,3.97969362,3275.2,3275.1,0.61081]
[1737643535600,3.2078,3275.3,3275.0,0.61082]
[1737643535801,3.89055089,3275.2,3274.6,3.2078]
[1737643535997,3.2078,3275.3,3275.2,0.61079]
[1737643536203,3.2078,3275.3,3274.6,3.2078]
[1737643536204,3.89055089,3275.1,3274.6,3.2078]
[1737643536411,3.89055089,3275.1,3274.9,0.61084]
[1737643536709,3.2078,3275.3,3274.9,0.61084]
[1737643536913,3.2078,3275.3,3275.2,0.61079]
[1737643537111,3.089,3275.6,3275.5,0.61074]
[1737643537413,3.95720812,3275.5,3275.0,3.2078]
[1737643538304,3.95720812,3275.5,3275.1,0.61081]
[1737643538503,3.95720812,3275.5,3275.2,0.61079]
[1737643538905,3.95720812,3275.5,3275.0,3.2078]
[1737643539101,3.95720812,3275.5,3274.4,0.00457715]
[1737643539102,3.95720812,3275.5,3274.4,3.21237715]
[1737643539303,3.2078,3275.1,3274.4,3.21237715]
[1737643539505,3.2078,3275.4,3274.4,3.21237715]
[1737643539805,4.02000065,3275.0,3274.4,3.21237715]
[1737643540011,4.02000065,3275.0,3274.9,3.81865]
[1737643540314,2.9169,3275.5,3274.9,3.2078]
[1737643540512,2.9169,3275.5,3275.2,0.61079]
[1737643540706,4.01597438,3275.2,3275.1,0.61081]
[1737643540912,4.01597438,3275.4,3275.3,0.61078]
[1737643541111,1.5719,3275.9,3275.8,0.61068]
[1737643541414,4.01597438,3275.8,3275.3,3.2078]
[1737643541712,4.01597438,3275.8,3275.6,0.61072]
[1737643541914,4.01597438,3275.8,3275.4,0.61076]
[1737643542112,4.01597438,3275.8,3275.3,3.2078]
[1737643542415,4.62666438,3275.8,3275.2,0.61079]
[1737643542611,4.62667438,3275.8,3275.2,0.61078]
[1737643542809,4.01597438,3275.8,3275.1,0.61081]
[1737643543113,4.01597438,3275.8,3275.3,3.2078]
[1737643543311,2.9298,3276.6,3275.7,3.2078]
[1737643543610,3.92579506,3276.5,3275.9,3.2078]
[1737643543909,0.44981508,3277.0,3276.7,0.6105]
[1737643543910,5.44729506,3277.0,3276.7,0.6105]
[1737643544102,5.44729506,3277.0,3276.3,3.2078]
[1737643544307,1.5215,3277.0,3276.8,0.61049]
[1737643544507,3.92579506,3276.9,3276.3,3.2078]
[1737643544711,3.92579506,3276.9,3276.3,3.21237715]
[1737643545105,3.2078,3276.6,3276.3,0.00457715]
[1737643545411,0.61057,3276.4,3276.3,0.00457715]
[1737643545607,4.10110494,3276.4,3274.9,3.2078]
[1737643545815,3.2078,3276.2,3275.3,3.2078]
[1737643546016,3.96286611,3276.4,3275.3,3.2078]
[1737643546218,3.96286611,3276.1,3274.9,3.2078]
[1737643546509,3.96286611,3276.2,3275.7,3.2078]
[1737643546714,3.99352497,3276.0,3275.9,0.61065]
[1737643546913,3.99352497,3276.1,3276.0,0.61065]
[1737643547107,3.2078,3276.6,3276.2,0.6106]
[1737643547308,3.99352497,3276.3,3276.2,0.61061]
[1737643547507,1.5334,3276.9,3276.1,3.2078]
[1737643547811,3.9477633,3276.8,3276.7,0.61051]
[1737643548007,1.5334,3276.9,3276.4,0.61056]
[1737643548212,3.9477633,3276.8,3276.6,0.61053]
[1737643548711,3.2078,3276.7,3276.1,3.2078]
[1737643549116,3.99572866,3276.6,3276.2,0.61061]
[1737643549413,3.2078,3276.3,3275.8,0.61067]
[1737643549609,3.2078,3276.3,3275.6,3.2078]
[1737643549805,0.61064,3276.1,3275.6,3.2078]
[1737643550008,0.45006602,3276.1,3275.6,3.2078]
[1737643550216,3.95013667,3276.0,3275.2,0.00457715]
[1737643550516,3.95013667,3276.0,3275.4,3.2078]
[1737643550716,3.2078,3276.3,3275.5,1.52686]
[1737643550917,3.2078,3276.3,3276.2,0.61061]
[1737643551318,3.2078,3276.4,3275.5,1.52686]
[1737643551516,1.5334,3276.9,3276.2,3.2078]
[1737643551910,3.93699239,3276.8,3276.2,44.0078]
[1737643552110,3.93699239,3276.8,3276.7,0.61051]
[1737643552613,3.93699239,3276.8,3276.2,3.2078]
[1737643552808,3.93699239,3276.8,3276.7,0.61052]
[1737643553216,0.00457469,3277.0,3276.7,0.61052]
[1737643553526,0.21881906,3277.2,3276.6,3.2078]
[1737643553705,0.21881906,3277.2,3277.1,3.81824]
[1737643554106,0.21881906,3277.2,3277.1,3.2078]
[1737643554316,4.19557079,3277.2,3277.1,0.61044]
[1737643554516,4.19557079,3277.2,3276.3,3.2078]
[1737643554706,4.19557079,3277.2,3276.4,0.61057]
[1737643554914,4.19557079,3277.2,3276.9,0.61048]
[1737643555114,7.40337079,3277.2,3276.4,0.61057]
[1737643555317,4.19557079,3277.2,3276.3,3.2078]
[1737643555619,0.21881906,3277.2,3277.1,0.61044]
[1737643555925,3.95311228,3277.1,3276.9,0.61047]
[1737643556116,3.95311228,3277.1,3276.3,3.2078]
[1737643556310,7.37973134,3277.2,3276.3,3.2078]
[1737643556311,0.21881906,3277.2,3276.3,3.2078]
[1737643556510,3.95311228,3277.0,3276.4,0.61057]
[1737643556720,3.2078,3277.0,3276.3,3.2078]
[1737643556913,3.2078,3277.1,3276.9,0.61048]
[1737643557110,0.21881906,3277.2,3276.3,44.0078]
[1737643557319,3.9086957,3277.0,3276.3,3.2078]
[1737643557516,3.9086957,3277.1,3276.3,3.2078]
[1737643557716,3.94404266,3276.9,3276.4,0.61057]
[1737643557929,3.94404266,3276.9,3276.7,0.61051]
[1737643558117,3.94404266,3277.1,3276.7,0.61051]
[1737643558425,3.94404266,3276.8,3276.3,3.2078]
[1737643558624,8.58184266,3277.0,3276.3,3.2078]
[1737643558820,3.93174471,3276.7,3276.3,3.2078]
[1737643559016,3.93174471,3276.7,3276.4,0.61057]
[1737643559217,3.93174471,3276.8,3276.4,0.61056]
[1737643559421,1.4848,3276.9,3276.4,0.61057]
[1737643559618,3.93174471,3276.6,3276.5,0.61055]
[1737643559822,4.04767661,3276.7,3276.6,0.61053]
[1737643560018,1.43,3277.0,3276.4,0.61057]
[1737643560217,4.04767661,3276.7,3276.4,0.61057]
[1737643560524,0.43908166,3276.6,3275.1,3.2078]
[1737643560725,3.2078,3275.8,3274.6,3.2078]
[1737643560922,3.2078,3275.9,3274.6,3.2078]
[1737643561126,4.00618474,3275.7,3275.0,3.2078]
[1737643561325,4.00618474,3275.8,3275.0,3.2078]
[1737643561526,4.01076189,3275.9,3275.0,3.2078]
[1737643561723,3.92739137,3275.6,3275.5,0.61074]
[1737643561922,3.92739137,3275.7,3275.6,0.61072]
[1737643562226,3.21237715,3275.9,3275.6,0.61071]
[1737643562428,0.61073,3275.6,3275.1,0.61081]
[1737643562727,0.61073,3275.6,3274.2,3.2078]
[1737643562728,3.2078,3275.4,3274.2,3.2078]
[1737643562925,0.43941561,3275.3,3274.3,1.52739]
[1737643563123,4.36753511,3275.3,3274.9,0.61084]
[1737643563328,13.01893061,3275.3,3274.4,40.8]
[1737643563639,3.2078,3274.9,3273.8,3.2078]
[1737643563926,0.43941561,3274.8,3273.8,3.2078]
[1737643564133,4.33065212,3274.8,3273.8,3.2078]
[1737643564335,3.2078,3274.5,3273.8,3.2078]
[1737643564625,4.45492898,3274.4,3274.0,0.00457715]
[1737643564832,0.45506611,3274.3,3274.0,0.00457715]
[1737643565226,3.99986287,3274.2,3274.1,0.611]
[1737643565432,3.2078,3275.1,3274.0,5.00457715]
[1737643565630,3.2078,3275.1,3274.7,0.61089]
[1737643565830,4.6475,3275.7,3274.5,3.2078]
[1737643566031,4.6475,3275.7,3275.2,0.61078]
[1737643566032,0.45642888,3275.6,3275.2,0.61078]
[1737643566237,0.45642888,3275.6,3275.1,0.6108]
[1737643566443,3.8841192,3275.5,3275.0,0.61083]
[1737643566632,3.8841192,3275.5,3274.5,3.2078]
[1737643566937,3.8841192,3275.5,3275.4,3.81856]
[1737643567240,0.00180791,3275.6,3275.5,0.61074]
[1737643567537,0.00180791,3275.6,3275.5,41.41074]
[1737643567732,4.01689864,3275.6,3275.5,40.8]
[1737643567929,9.47151913,3275.6,3274.3,2.9217]
[1737643568142,3.2078,3275.0,3274.3,1.486]
[1737643568440,4.46986198,3274.9,3274.6,0.6109]
[1737643568644,4.01509073,3274.9,3274.8,0.61087]
[1737643568834,1.468,3275.5,3274.9,0.61084]
[1737643569142,3.98924854,3274.9,3274.7,0.61088]
[1737643569333,3.98924854,3275.3,3275.2,0.61079]
[1737643569533,3.20960791,3275.6,3275.2,0.61079]
[1737643569534,0.00180791,3275.6,3275.5,0.61074]
[1737643570132,0.00180791,3275.6,3275.5,41.41074]
[1737643570534,7.91e-06,3275.6,3275.5,41.41074]
[1737643570731,7.91e-06,3275.6,3275.5,46.41074]
[1737643570943,7.91e-06,3275.6,3275.5,41.41074]
[1737643571140,5.06e-06,3275.9,3275.5,45.8]
[1737643571348,3.87021456,3277.2,3277.1,0.61044]
[1737643571349,0.21881906,3277.2,3277.1,0.61044]
[1737643572637,0.82923906,3277.2,3276.9,3.2078]
[1737643572843,4.12467434,3277.2,3277.1,0.61044]
[1737643573039,0.21881906,3277.2,3277.1,0.61044]
[1737643573240,0.21881906,3277.2,3276.9,3.2078]
[1737643573545,4.73509434,3277.2,3276.9,3.2078]
[1737643573742,0.21881906,3277.2,3276.9,3.2078]
[1737643574046,3.92445871,3277.1,3276.9,3.81826]
[1737643574432,0.61047,3277.0,3276.8,0.00457715]
[1737643574644,1.4578,3276.9,3276.8,0.00457715]
[1737643574831,5.34789519,3276.9,3276.8,0.61507715]
[1737643575032,3.89009519,3276.9,3276.8,0.61507715]
[1737643575239,0.21881906,3277.2,3277.1,0.61044]
[1737643576639,3.2078,3278.9,3277.0,3.2078]
[1737643576843,1.4578,3278.8,3278.2,3.2078]
[1737643577042,5.47644144,3278.8,3277.6,3.2078]
[1737643577239,3.2078,3278.5,3278.1,0.61025]
[1737643577543,4.01864144,3278.4,3277.6,3.2078]
[1737643577939,3.89424289,3278.5,3278.3,0.61022]
[1737643578142,3.89424289,3278.3,3277.6,3.2078]
[1737643578336,3.81799,3278.5,3277.6,3.2078]
[1737643578537,4.35269895,3278.4,3277.7,0.61032]
[1737643578743,4.04673228,3278.2,3277.8,0.6103]
[1737643579044,4.04673228,3278.3,3277.8,0.6103]
[1737643579345,4.04673228,3278.1,3277.6,3.2078]
[1737643579547,3.2078,3278.0,3277.2,3.2078]
[1737643579845,7.14668316,3278.0,3277.2,3.2078]
[1737643580042,0.61029,3277.9,3277.3,0.6104]
[1737643580240,1.5633,3277.8,3277.3,0.6104]
[1737643580432,1.5633,3277.8,3276.8,3.21237715]
[1737643580433,3.6381248,3277.4,3276.8,3.21237715]
[1737643580635,3.2078,3277.0,3276.8,0.00457715]
[1737643580947,3.90503861,3277.3,3277.2,0.61042]
[1737643581132,0.61035,3277.7,3277.0,0.61045]
[1737643581332,3.2078,3277.4,3276.8,0.00457715]
[1737643581539,6.8459248,3276.9,3276.8,0.00457715]
[1737643581745,7.4564048,3276.9,3276.8,0.00457715]
[1737643582046,7.09506566,3276.9,3276.8,0.00457715]
[1737643582251,1.5374,3277.3,3276.8,0.00457715]
[1737643582444,0.61037,3277.5,3276.9,0.61047]
[1737643582743,3.88726566,3277.2,3277.0,0.61046]
[1737643583050,0.6104,3277.4,3276.8,0.00457715]
[1737643583344,0.6104,3277.4,3276.8,0.61505715]
[1737643583345,7.4563248,3277.4,3276.8,0.61505715]
[1737643583546,7.4563248,3277.4,3276.8,0.00457715]
[1737643583547,0.61043,3277.2,3276.8,0.00457715]
[1737643583845,3.92321356,3277.1,3276.8,0.00457715]
[1737643584040,3.2078,3277.0,3276.8,0.00457715]
[1737643584449,3.92321356,3276.9,3276.8,0.61507715]
[1737643584847,4.7452,3277.6,3276.8,0.00457715]
[1737643585048,5.35556,3277.6,3277.1,0.61043]
[1737643585248,0.61043,3277.2,3276.8,0.61507715]
[1737643585443,3.98332641,3277.5,3276.8,0.00457715]
[1737643585748,3.98332641,3277.1,3276.8,0.00457715]
[1737643586049,3.2078,3277.1,3276.8,0.00457715]
[1737643586353,3.93456939,3277.0,3276.8,0.00457715]
[1737643586741,3.0812,3277.8,3276.9,1.5262]
[1737643586948,3.0812,3277.8,3277.4,0.61037]
[1737643587145,3.88649107,3277.5,3277.4,0.61039]
[1737643587347,1.5633,3277.8,3277.7,0.61033]
[1737643587645,3.2078,3278.1,3277.5,3.2078]
[1737643587948,3.2078,3278.1,3277.2,40.8]
[1737643588150,3.2078,3278.1,3277.9,0.61028]
[1737643588352,3.98808982,3278.0,3277.2,40.8]
[1737643588842,3.2078,3278.1,3277.4,3.2078]
[1737643589043,3.2078,3278.1,3278.0,0.61027]
[1737643589446,1.4459,3278.4,3277.5,1.52589]
[1737643589654,3.8854725,3278.1,3277.8,0.6103]
[1737643589949,0.6103,3277.9,3277.4,0.61037]
[1737643590144,0.61048,3276.9,3276.8,0.00457715]
[1737643590345,3.2078,3277.0,3276.8,0.00457715]
[1737643590547,3.95619718,3276.9,3276.8,0.61506715]
[1737643590847,5.51464616,3277.4,3277.3,0.6104]
[1737643591044,1.5281,3277.4,3277.1,0.61043]
[1737643591249,3.98654616,3277.3,3277.2,3.81822]
[1737643591448,3.2078,3278.1,3278.0,0.61027]
[1737643591847,7.1141416,3278.1,3277.2,3.2078]
[1737643592050,7.1141416,3278.1,3278.0,0.61027]
[1737643592051,3.9063416,3278.1,3278.0,0.61027]
[1737643592347,1.5281,3278.5,3278.4,0.6102]
[1737643593156,4.7546,3278.9,3278.7,0.61013]
[1737643593354,4.7546,3278.9,3278.1,3.2078]
[1737643593555,4.0441177,3278.8,3278.5,0.61017]
[1737643593851,4.0441177,3278.8,3278.2,0.00457715]
[1737643594049,4.0441177,3278.8,3278.7,0.61014]
[1737643594247,3.2078,3278.9,3278.2,0.00457715]
[1737643594555,4.03214232,3278.8,3278.7,0.61014]
[1737643595256,4.03214232,3278.8,3278.2,0.00457715]
[1737643595645,6.8468294,3278.5,3278.2,0.00457715]
[1737643595853,1.5192,3278.4,3277.1,3.2078]
[1737643596053,3.2078,3277.7,3277.4,0.61038]
[1737643596356,3.6390294,3277.9,3277.6,0.61033]
[1737643596547,3.2078,3277.7,3277.6,0.61033]
[1737643596745,3.90085615,3277.8,3277.1,3.2078]
[1737643596950,3.2078,3278.2,3277.9,0.61029]
[1737643597258,0.00457715,3277.8,3277.7,0.61033]
[1737643598659,0.00457715,3277.8,3277.1,3.21237715]
[1737643598954,3.2078,3277.7,3277.1,3.21237715]
[1737643599153,3.2078,3277.7,3277.6,0.61035]
[1737643599541,3.2078,3277.7,3277.1,3.21237715]
[1737643599747,3.99579774,3277.7,3277.1,3.21237715]
[1737643599950,0.00457715,3277.8,3277.7,0.61033]
[1737643601354,3.2078,3279.0,3278.8,0.61012]
[1737643601561,0.52192696,3278.9,3278.1,1.52561]
[1737643601763,3.2078,3278.6,3278.5,0.61017]
[1737643602164,7.17583576,3278.6,3278.3,0.61021]
[1737643602362,7.17583576,3278.6,3278.5,0.61018]
[1737643602556,3.2078,3279.0,3278.9,0.61011]
[1737643602764,3.2078,3279.4,3278.5,4.73322]
[1737643603054,3.2078,3279.4,3279.3,0.61003]
[1737643603254,3.95960828,3279.3,3279.2,0.61005]
[1737643603460,3.95960828,3279.4,3278.9,44.0078]
[1737643603659,1.4708,3279.8,3279.3,0.61003]
[1737643603855,1.4708,3279.8,3278.9,44.0078]
[1737643603856,3.99490922,3279.6,3279.1,0.61006]
[1737643604061,3.99490922,3279.3,3278.5,3.2078]
[1737643604258,7.20270922,3279.6,3278.9,0.6101]
[1737643604454,3.99490922,3279.2,3279.1,0.61006]
[1737643604658,3.99490922,3279.2,3278.6,40.8]
[1737643604659,3.2078,3279.6,3278.6,40.8]
[1737643604861,0.61004,3279.3,3278.7,0.61014]
[1737643605067,3.2078,3279.0,3278.9,0.6101]
[1737643605263,3.2078,3279.0,3278.5,3.2078]
[1737643605562,7.18121398,3279.0,3278.5,3.2078]
[1737643605865,3.97341398,3279.0,3278.9,0.61011]
[1737643606166,3.2078,3279.5,3279.2,0.61003]
[1737643606360,3.2078,3279.5,3279.4,0.61001]
[1737643606562,3.2078,3279.5,3278.5,3.2078]
[1737643606563,4.0394418,3279.4,3279.3,0.61003]
[1737643606757,4.0394418,3279.4,3278.6,1.6825]
[1737643606758,7.0930828,3279.5,3279.4,0.61001]
[1737643606961,3.2078,3279.5,3279.4,0.61001]
[1737643607267,7.0930828,3279.5,3279.4,0.61001]
[1737643607463,3.2078,3280.3,3279.4,0.61001]
[1737643607973,7.2307379,3280.3,3280.0,0.60988]
[1737643608265,0.60995,3279.8,3279.5,0.00457715]
[1737643608564,7.8406979,3279.7,3279.5,0.00457715]
[1737643608771,7.2307379,3279.7,3279.5,0.00457715]
[1737643608958,1.7098,3280.1,3279.5,0.00457715]
[1737643608959,8.81274063,3280.1,3279.5,0.00457715]
[1737643609161,4.9176,3280.1,3279.5,0.00457715]
[1737643609362,3.89514063,3280.0,3279.5,0.00457715]
[1737643609567,3.89514063,3280.0,3279.7,0.60995]
[1737643609769,4.50505063,3280.0,3279.6,0.60996]
[1737643609968,3.2078,3279.7,3279.6,0.60996]
[1737643610167,3.2078,3279.7,3279.5,0.00457715]
[1737643610364,7.24088578,3279.7,3279.5,0.00457715]
[1737643610870,7.85084578,3279.7,3279.5,0.00457715]
[1737643611171,0.60997,3279.6,3279.5,0.00457715]
[1737643611473,4.61755926,3279.6,3279.5,0.00457715]
[1737643611767,4.00758926,3279.6,3279.5,0.00457715]
[1737643611972,4.00758926,3279.6,3279.5,0.61456715]
[1737643612158,4.00758926,3279.6,3279.5,0.00457715]
[1737643612561,4.61755926,3279.6,3279.5,0.00457715]
[1737643612969,8.73605713,3279.6,3279.5,0.00457715]
[1737643613167,8.21585926,3279.6,3279.5,0.00457715]
[1737643613369,7.60588926,3279.6,3279.5,0.00457715]
[1737643613869,4.00758926,3279.6,3279.5,0.00457715]
[1737643614073,3.2078,3279.7,3279.6,0.60997]
[1737643614369,4.9176,3280.1,3279.5,0.00457715]
[1737643614565,0.60991,3280.0,3279.6,0.60996]
[1737643614765,5.0423169,3280.0,3279.6,0.60997]
[1737643614966,0.60993,3279.9,3279.5,0.61455715]
[1737643615167,3.2078,3279.7,3279.5,0.61455715]
[1737643615474,3.92660005,3279.6,3279.5,0.61455715]
[1737643615669,4.53657005,3279.6,3279.5,0.00457715]
[1737643615869,3.92660005,3279.6,3279.5,0.00457715]
[1737643616272,4.53657005,3279.6,3279.5,0.00457715]
[1737643616469,3.92660005,3279.6,3279.5,0.00457715]
[1737643616676,3.92660005,3279.6,3279.5,0.61456715]
[1737643616973,3.92660005,3279.6,3279.5,0.00457715]